bitfinex/quotes_ETHUSD_20240927
["timestamp","ask_amount","ask_price","bid_price","bid_amount"]
[1727439358188,7.53312,2655.0,2654.4,7.16100631]
[1727439358405,3.76677,2654.8,2654.4,0.39369631]
[1727439358568,1.75103071,2654.9,2654.4,0.39369631]
[1727439358914,3.76656,2655.0,2654.3,8.3176]
[1727439359120,7.53314,2655.0,2654.3,4.55025]
[1727439359417,3.76673,2654.9,2654.3,4.55025]
[1727439359710,3.76673,2654.9,2654.4,0.55]
[1727439360408,3.76656,2655.0,2654.4,4.3173]
[1727439360633,3.76656,2655.0,2654.4,6.11315807]
[1727439361285,3.76656,2655.0,2654.4,0.55]
[1727439361486,3.76712,2654.6,2654.3,0.7829]
[1727439361715,3.76712,2654.6,2654.1,3.0]
[1727439362016,3.76727,2654.5,2654.1,3.0]
[1727439362389,3.76727,2654.5,2654.0,4.58648]
[1727439363086,3.76727,2654.5,2654.1,0.55]
[1727439369229,3.76748,2654.3,2654.0,0.8186]
[1727439369442,3.76748,2654.3,2653.8,3.76804]
[1727439369443,3.76748,2654.3,2653.8,0.8298]
[1727439369633,3.76748,2654.3,2653.6,6.76844]
[1727439369634,3.76811,2653.9,2653.6,0.8298]
[1727439369841,3.76811,2653.9,2653.4,4.54532]
[1727439369842,4.144921,2653.9,2653.4,4.54532]
[1727439369984,3.76811,2653.9,2653.4,4.54532]
[1727439370385,3.76811,2653.9,2653.4,4.54526]
[1727439370823,3.76811,2653.9,2653.5,3.0]
[1727439371189,3.76819,2653.8,2653.5,0.55]
[1727439371382,0.8123,2653.7,2653.2,4.55454]
[1727439371582,4.58041,2653.9,2653.2,4.55454]
[1727439371782,0.458041,2653.8,2653.2,4.55454]
[1727439372031,4.226241,2653.8,2653.2,4.55454]
[1727439372230,0.458041,2653.8,2653.2,4.55454]
[1727439372438,0.8123,2653.9,2653.2,4.55454]
[1727439372584,3.76751,2654.3,2653.7,0.7856]
[1727439372785,7.3,2654.5,2653.7,0.7856]
[1727439372786,7.3,2654.5,2653.8,0.55]
[1727439372989,0.8123,2654.6,2653.7,3.80623608]
[1727439373303,4.57908,2654.8,2654.2,3.76752]
[1727439374022,0.8123,2654.8,2654.2,3.76752]
[1727439374351,0.7966,2655.0,2654.3,0.7953]
[1727439374495,0.7966,2655.0,2654.5,3.76714]
[1727439375086,3.7664,2655.1,2654.6,0.55]
[1727439375610,7.53282,2655.1,2654.6,0.55]
[1727439375934,4.597742,2655.1,2654.6,0.55]
[1727439376732,8.364162,2655.1,2654.6,0.55]
[1727439379910,3.76663,2654.9,2654.4,0.55]
[1727439380095,3.76681,2654.8,2654.4,0.55]
[1727439380497,3.76681,2654.8,2654.3,0.55]
[1727439380731,4.52323,2654.9,2654.3,0.55]
[1727439380933,3.76663,2654.9,2654.3,4.75438522]
[1727439381239,3.76663,2654.9,2654.4,3.7673]
[1727439381443,7.53286,2655.1,2654.4,3.7673]
[1727439381729,3.76649,2655.0,2654.3,4.75438522]
[1727439381934,4.97605961,2655.0,2654.3,4.75431522]
[1727439382141,0.7787,2654.9,2654.4,3.7673]
[1727439382435,3.76635,2655.1,2654.4,3.7673]
[1727439382941,1.58006413,2655.1,2654.3,0.55]
[1727439383183,3.76699,2654.7,2654.2,0.8047]
[1727439383435,3.76699,2654.7,2654.0,7.59319]
[1727439384137,3.76699,2654.7,2654.1,3.76774]
[1727439384446,5.34683413,2654.8,2654.2,0.55]
[1727439384637,4.95549611,2654.7,2654.2,0.55]
[1727439385001,4.95549611,2654.7,2654.0,4.59324]
[1727439385200,4.95549611,2654.7,2654.0,0.8254]
[1727439385545,8.72251611,2654.7,2654.1,3.76775]
[1727439385702,1.38458704,2654.6,2654.1,3.76775]
[1727439386219,1.38458704,2654.6,2654.1,3.76764]
[1727439386739,1.38458704,2654.6,2654.1,7.53531]
[1727439386911,1.38458704,2654.6,2654.1,3.76764]
[1727439387114,1.38458704,2654.6,2654.2,3.7676]
[1727439387326,1.38458704,2654.6,2654.1,3.76764]
[1727439387525,0.67315712,2654.5,2654.1,3.76764]
[1727439387727,1.48085712,2654.5,2654.1,3.76764]
[1727439388422,5.24807712,2654.5,2654.0,0.8254]
[1727439388749,5.24807712,2654.5,2654.0,3.76788]
[1727439388948,3.06092125,2654.5,2654.0,3.76788]
[1727439389530,1.48085712,2654.5,2654.0,3.76788]
[1727439389712,6.10714413,2654.7,2654.1,3.76768]
[1727439389911,2.34016413,2654.7,2654.2,0.8137]
[1727439390210,1.58006413,2654.7,2654.2,0.8137]
[1727439390613,1.58006413,2654.7,2654.2,4.58124]
[1727439390821,1.58006413,2654.7,2654.3,3.76743]
[1727439391020,5.34699413,2654.7,2654.2,4.58129]
[1727439391252,1.58006413,2654.8,2654.3,3.76744]
[1727439391554,1.58006413,2654.8,2654.4,0.55]
[1727439392213,5.34683413,2654.8,2654.4,0.55]
[1727439393249,3.7669,2654.7,2654.3,0.55]
[1727439393611,3.76712,2654.6,2654.2,0.8137]
[1727439393812,3.76712,2654.6,2654.2,0.55]
[1727439394250,5.34718413,2654.6,2654.2,0.55]
[1727439394657,3.76718,2654.5,2654.2,0.55]
[1727439395361,3.76718,2654.5,2654.0,0.7585]
[1727439395655,0.7556,2654.4,2654.1,0.55]
[1727439396037,5.70716637,2654.4,2654.0,0.55]
[1727439397358,5.70716637,2654.4,2653.9,4.31798]
[1727439397359,4.52306,2654.4,2653.9,4.31798]
[1727439397554,3.76749,2654.3,2653.9,0.55]
[1727439397727,3.76762,2654.2,2653.9,0.55]
[1727439398671,6.10309413,2654.4,2653.9,4.31803]
[1727439398876,1.58006413,2654.3,2653.9,0.55]
[1727439399044,1.58006413,2654.4,2654.0,3.76789]
[1727439399439,1.58006413,2654.4,2654.1,0.55]
[1727439399675,1.58006413,2654.5,2654.2,4.57589]
[1727439399875,1.58006413,2654.6,2654.2,5.465261]
[1727439400075,1.58006413,2654.5,2654.2,4.57589]
[1727439400277,1.58006413,2654.3,2654.0,0.55]
[1727439400741,1.58006413,2654.3,2654.0,4.31788]
[1727439401081,2.40946413,2654.4,2654.0,5.204035]
[1727439401240,1.58006413,2654.3,2654.0,5.204035]
[1727439401442,1.58006413,2654.3,2654.0,1.436155]
[1727439403145,1.58006413,2654.2,2653.9,0.7756]
[1727439403344,5.34767413,2654.2,2653.8,0.55]
[1727439403560,1.58006413,2654.1,2653.8,0.55]
[1727439404376,1.58006413,2653.9,2653.7,0.7658]
[1727439404582,9.11605413,2654.0,2653.5,0.7967]
[1727439404742,1.58006413,2653.9,2653.5,0.7967]
[1727439404941,1.58006413,2653.9,2653.5,4.56525]
[1727439405151,1.58006413,2653.8,2653.5,4.56525]
[1727439405548,1.58006413,2653.8,2653.6,0.55]
[1727439405750,1.58006413,2653.9,2653.6,0.55]
[1727439407480,1.58006413,2653.9,2653.5,0.7967]
[1727439407481,5.34829413,2653.8,2653.5,0.7967]
[1727439407877,3.76833,2653.7,2653.3,0.7804]
[1727439408041,5.34839413,2653.7,2653.3,0.7804]
[1727439408252,3.76833,2653.7,2653.3,0.7804]
[1727439408469,9.11659413,2653.8,2653.3,0.7804]
[1727439408743,5.34829413,2653.8,2653.3,0.7804]
[1727439409145,3.76842,2653.7,2653.3,0.7804]
[1727439409343,3.76847,2653.6,2653.3,0.7804]
[1727439411086,5.34829413,2653.8,2653.3,0.7804]
[1727439411281,5.34829413,2653.8,2653.3,4.54928]
[1727439411490,3.76823,2653.8,2653.3,4.54928]
[1727439413076,3.76823,2653.8,2653.3,5.681114]
[1727439413293,6.15254413,2654.0,2653.4,0.55]
[1727439414000,3.76821,2653.8,2653.4,0.55]
[1727439414399,3.76814,2653.9,2653.4,0.55]
[1727439416107,3.76823,2653.8,2653.4,0.55]
[1727439417024,7.53673,2653.7,2653.3,0.7804]
[1727439417198,3.76832,2653.7,2653.3,0.7804]
[1727439417693,6.16081172,2653.9,2653.3,4.54926]
[1727439417880,1.58006413,2653.9,2653.4,0.55]
[1727439418082,1.58006413,2653.9,2653.6,0.8046]
[1727439418284,5.34796413,2654.0,2653.6,0.8046]
[1727439418484,1.58006413,2654.0,2653.6,0.8046]
[1727439419274,3.76804,2653.9,2653.6,0.8046]
[1727439421004,7.53617,2653.9,2653.6,0.8046]
[1727439421206,4.67963441,2653.9,2653.6,0.8046]
[1727439421406,8.44775441,2653.9,2653.6,0.8046]
[1727439421607,4.67963441,2653.9,2653.4,5.12493]
[1727439422155,3.76804,2653.9,2653.4,5.12493]
[1727439422554,3.76824,2653.8,2653.3,4.575]
[1727439422844,3.76824,2653.8,2653.3,8.34381]
[1727439423050,1.58006413,2653.9,2653.3,4.575]
[1727439423223,3.76833,2653.7,2653.3,4.575]
[1727439423749,3.76839,2653.7,2653.3,0.8062]
[1727439424841,7.53681,2653.7,2653.3,0.8062]
[1727439425049,3.76839,2653.7,2653.3,0.8062]
[1727439425640,5.34845413,2653.7,2653.3,0.8062]
[1727439425885,0.7841,2653.6,2653.2,6.76895]
[1727439426067,0.7841,2653.6,2653.1,4.57027]
[1727439426269,4.55257,2653.6,2653.1,0.8011]
[1727439426473,4.38194341,2653.5,2653.1,3.8011]
[1727439427040,0.61326341,2653.5,2653.1,3.8011]
[1727439427490,9.90120413,2653.6,2653.1,3.8011]
[1727439427780,1.58006413,2653.5,2653.1,3.8011]
[1727439427980,5.34868413,2653.5,2653.1,3.8011]
[1727439428301,5.34883413,2653.4,2652.9,0.8031]
[1727439428485,6.91709972,2653.4,2652.9,0.8031]
[1727439428647,1.58006413,2653.3,2652.9,0.8031]
[1727439429190,3.76911,2653.2,2652.9,0.8031]
[1727439429477,1.58006413,2653.1,2652.6,0.7621]
[1727439429685,1.95697513,2653.1,2652.6,4.53197]
[1727439430391,3.76936,2653.0,2652.6,0.7621]
[1727439430987,1.95697513,2653.1,2652.6,0.7621]
[1727439431186,5.34926413,2653.1,2652.6,0.7621]
[1727439431691,3.76941,2653.0,2652.6,0.7621]
[1727439431995,5.34926413,2653.1,2652.6,0.7621]
[1727439432216,9.11857413,2653.1,2652.6,0.7621]
[1727439432524,3.76932,2653.0,2652.6,0.7621]
[1727439433177,3.76953,2652.9,2652.6,0.7621]
[1727439434801,0.7687,2652.8,2652.4,0.55]
[1727439435002,3.76953,2652.9,2652.4,7.32006]
[1727439435199,3.76953,2652.9,2652.5,0.7652]
[1727439436375,4.58412,2652.8,2652.3,1.3437]
[1727439436607,4.58412,2652.8,2652.3,5.11395]
[1727439436774,7.53912,2652.9,2652.4,3.0]
[1727439436979,3.76961,2652.8,2652.4,3.0]
[1727439438015,3.7699,2652.6,2652.3,1.3437]
[1727439438514,3.76974,2652.7,2652.3,1.3437]
[1727439439018,3.76961,2652.8,2652.3,1.3437]
[1727439439647,4.38602741,2652.8,2652.3,1.3437]
[1727439440043,3.76981,2652.7,2652.3,1.3437]
[1727439441139,3.76981,2652.7,2652.1,3.0]
[1727439441140,0.7788,2652.6,2652.1,0.55]
[1727439441344,3.77011,2652.5,2652.1,0.55]
[1727439441740,3.77029,2652.4,2652.1,0.7689]
[1727439442279,3.77096,2651.9,2651.3,0.7538]
[1727439442434,4.55626,2651.9,2651.3,0.7538]
[1727439442632,7.54252,2651.7,2651.3,0.7538]
[1727439442863,3.77124,2651.7,2651.3,0.7538]
[1727439443246,3.77139,2651.6,2651.3,0.7538]
[1727439443680,7.54279,2651.6,2651.3,0.7538]
[1727439444184,3.77146,2651.5,2651.3,0.7538]
[1727439445487,3.77146,2651.5,2651.1,0.7654]
[1727439445786,3.7716,2651.4,2651.1,0.7654]
[1727439446001,3.77174,2651.3,2650.9,0.7679]
[1727439446150,8.29944,2651.5,2651.0,0.55]
[1727439446489,3.7718,2651.3,2651.0,0.55]
[1727439446898,4.52786,2651.5,2651.0,0.55]
[1727439447057,3.77161,2651.4,2651.0,0.55]
[1727439447260,4.52786,2651.5,2651.0,0.55]
[1727439447261,3.77176,2651.3,2651.0,0.55]
[1727439448152,4.52792,2651.5,2651.0,0.55]
[1727439448354,3.77152,2651.5,2651.1,0.812]
[1727439448850,7.54306,2651.5,2651.1,0.812]
[1727439449087,3.7716,2651.4,2651.1,0.812]
[1727439449392,3.77159,2651.4,2651.1,0.812]
[1727439452401,3.77117,2651.7,2651.4,0.7805]
[1727439453205,7.54246,2651.7,2651.4,0.7805]
[1727439453375,3.77117,2651.7,2651.4,0.7805]
[1727439453569,3.77096,2651.9,2651.5,0.55]
[1727439453871,3.77096,2651.9,2651.6,0.7931]
[1727439454992,3.7711,2651.8,2651.6,0.7931]
[1727439455492,3.77116,2651.7,2651.6,0.7931]
[1727439456099,3.77116,2651.7,2651.4,0.8027]
[1727439456275,3.77116,2651.7,2651.5,0.55]
[1727439456475,3.77116,2651.7,2651.4,0.8027]
[1727439457882,3.77145,2651.5,2651.1,0.55]
[1727439458084,7.54247,2651.7,2651.2,0.8115]
[1727439458294,4.52647,2652.0,2651.2,0.8115]
[1727439458528,3.77117,2651.7,2651.2,0.8115]
[1727439458727,0.83327061,2651.9,2651.2,0.8115]
[1727439458906,3.77167,2651.4,2651.2,0.8115]
[1727439460527,3.77143,2651.6,2651.2,0.8115]
[1727439460939,3.77146,2651.5,2651.2,0.8115]
[1727439461403,3.77096,2651.9,2651.6,0.55]
[1727439461821,3.77109,2651.8,2651.6,0.55]
[1727439465345,3.77116,2651.7,2651.6,0.55]
[1727439466011,3.7713,2651.6,2651.5,0.8044]
[1727439466211,3.77167,2651.4,2651.2,0.7968]
[1727439466817,3.77167,2651.4,2651.1,0.7854]
[1727439467016,3.77154,2651.5,2651.1,0.7854]
[1727439467551,3.7718,2651.3,2650.8,3.7713]
[1727439467715,7.54362,2651.3,2650.8,5.64349046]
[1727439468049,7.54362,2651.3,2650.8,3.7713]
[1727439468623,7.54362,2651.3,2650.9,0.55]
[1727439469411,3.7718,2651.3,2650.9,0.55]
[1727439469911,3.77196,2651.2,2650.9,0.55]
[1727439473527,3.77159,2651.4,2650.9,0.55]
[1727439473923,3.77177,2651.3,2650.9,0.55]
[1727439474349,7.5433,2651.4,2650.9,1.736622]
[1727439474536,3.77159,2651.4,2650.9,1.736622]
[1727439474742,3.77159,2651.4,2650.9,5.508892]
[1727439475758,3.77159,2651.4,2650.9,1.736622]
[1727439476060,3.77159,2651.4,2650.9,5.508832]
[1727439476429,7.54328,2651.4,2650.9,1.736622]
[1727439476631,3.77159,2651.4,2650.9,5.508922]
[1727439476850,7.54327,2651.4,2650.9,5.508922]
[1727439477567,3.77174,2651.3,2650.9,5.508922]
[1727439478056,3.77159,2651.4,2650.9,5.508922]
[1727439478453,3.77175,2651.3,2650.9,5.508922]
[1727439480057,3.77189,2651.2,2650.9,0.55]
[1727439482596,3.77173,2651.3,2650.9,0.55]
[1727439482873,3.7719,2651.2,2650.9,0.55]
[1727439483240,3.77173,2651.3,2650.9,0.55]
[1727439483582,3.77188,2651.2,2650.9,0.55]
[1727439484717,7.54387,2651.2,2650.9,3.55]
[1727439484970,3.77206,2651.1,2650.9,0.55]
[1727439485180,3.77188,2651.2,2650.8,0.7713]
[1727439485380,3.77216,2651.0,2650.8,0.7713]
[1727439486588,3.77216,2651.0,2650.7,0.55]
[1727439487537,5.3438149,2651.0,2650.7,0.55]
[1727439488795,3.77233,2650.9,2650.7,0.55]
[1727439488965,5.3438149,2651.0,2650.7,0.55]
[1727439489168,3.77231,2650.9,2650.7,0.55]
[1727439489362,3.77238,2650.9,2650.6,0.55]
[1727439489719,5.3440349,2650.9,2650.5,0.55]
[1727439489991,1.5716549,2650.9,2650.5,4.32285]
[1727439490154,5.3439649,2650.9,2650.5,0.55]
[1727439490993,6.53412809,2650.9,2650.5,0.55]
[1727439491485,1.5716549,2650.8,2650.5,0.55]
[1727439491788,6.1431949,2650.8,2650.5,0.55]
[1727439491989,1.5716549,2650.8,2650.5,0.55]
[1727439492195,1.5716549,2650.9,2650.6,3.77268]
[1727439492420,1.5716549,2650.9,2650.5,4.32273]
[1727439492625,5.3439549,2650.9,2650.5,0.55]
[1727439493513,5.3441949,2650.8,2650.5,0.55]
[1727439493715,1.5716549,2650.9,2650.5,0.55]
[1727439493923,5.3439849,2650.9,2650.5,0.55]
[1727439494211,9.1164149,2650.9,2650.5,0.55]
[1727439494594,3.77255,2650.8,2650.5,0.55]
[1727439495487,3.7726,2650.7,2650.5,0.55]
[1727439495693,1.97529488,2651.0,2650.4,0.0801868]
[1727439495694,4.59133,2650.6,2650.4,0.0801868]
[1727439495997,0.8186,2650.6,2650.4,0.0801868]
[1727439496225,5.3442449,2650.7,2650.4,0.0801868]
[1727439496525,5.3442549,2650.7,2650.4,0.8717868]
[1727439496735,1.5716549,2650.8,2650.4,0.8717868]
[1727439496906,3.77245,2650.8,2650.4,0.8717868]
[1727439497289,5.3441049,2650.8,2650.4,0.8717868]
[1727439497492,9.1166549,2650.8,2650.4,0.8717868]
[1727439497840,3.77259,2650.7,2650.4,0.0801868]
[1727439499228,7.545,2650.8,2650.4,0.0801868]
[1727439499393,9.1166549,2650.8,2650.4,0.0801868]
[1727439499859,1.5716549,2650.8,2650.5,0.55]
[1727439500062,5.3437649,2651.1,2650.7,0.55]
[1727439500553,3.77239,2650.9,2650.6,0.55]
[1727439500764,4.58634,2650.8,2650.5,0.55]
[1727439500965,0.8138,2650.8,2650.5,0.55]
[1727439501132,5.3439149,2651.0,2650.5,0.55]
[1727439501323,3.77226,2651.0,2650.7,0.55]
[1727439502238,1.5716549,2651.2,2650.9,3.77229]
[1727439502439,3.54468932,2651.6,2651.3,0.55]
[1727439502655,1.5716549,2651.7,2651.5,0.55]
[1727439502829,0.8293,2651.9,2651.5,8.12766608]
[1727439502830,3.54468932,2651.9,2651.5,8.12766608]
[1727439503037,5.3425549,2651.9,2651.5,4.35623608]
[1727439503234,5.3424449,2652.0,2651.5,0.62541988]
[1727439503637,5.3424449,2652.0,2651.5,0.55]
[1727439503828,1.5716549,2651.9,2651.5,0.55]
[1727439504029,1.5716549,2651.9,2651.5,1.82163561]
[1727439504425,3.77113,2651.8,2651.5,0.55]
[1727439504653,3.77126,2651.7,2651.5,0.55]
[1727439504852,7.54251,2651.7,2651.5,0.55]
[1727439505163,3.77145,2651.5,2651.4,1.3669]
[1727439505471,3.7716,2651.4,2651.2,0.55]
[1727439505636,3.77145,2651.5,2651.2,0.55]
[1727439506830,7.543,2651.5,2651.2,0.55]
[1727439507031,5.3431049,2651.5,2651.2,0.55]
[1727439507476,1.5716549,2651.6,2651.2,0.55]
[1727439507637,5.3428649,2651.7,2651.4,0.55]
[1727439507831,3.77121,2651.7,2651.4,0.55]
[1727439508145,3.77145,2651.5,2651.4,0.55]
[1727439509272,6.1312649,2651.6,2651.0,3.8203]
[1727439509439,6.1312649,2651.6,2651.1,0.55]
[1727439509646,3.7716,2651.4,2651.1,0.55]
[1727439510466,3.77187,2651.2,2651.0,0.8203]
[1727439511069,3.77201,2651.1,2650.6,0.8108]
[1727439511268,3.77221,2651.0,2650.6,1.65780029]
[1727439511472,3.77233,2650.9,2650.6,0.8108]
[1727439511673,6.1600649,2651.2,2650.6,0.8108]
[1727439511828,6.1600649,2651.2,2650.5,7.57898608]
[1727439511829,3.77191,2651.2,2650.8,0.8108]
[1727439512034,1.5716549,2651.3,2650.8,0.8108]
[1727439512360,3.77204,2651.1,2650.9,0.55]
[1727439512970,3.77204,2651.1,2650.8,0.8108]
[1727439513174,7.54415,2651.1,2650.8,0.8108]
[1727439513329,3.77204,2651.1,2650.8,0.8108]
[1727439514149,1.5716549,2651.2,2650.9,0.55]
[1727439514382,5.3434449,2651.3,2650.9,0.55]
[1727439514780,3.77179,2651.3,2650.9,0.55]
[1727439515015,5.3434449,2651.3,2650.9,0.55]
[1727439515183,9.1152749,2651.3,2650.9,0.55]
[1727439515588,9.1153049,2651.3,2650.9,0.55]
[1727439515790,3.77179,2651.3,2650.9,0.55]
[1727439516073,5.3434449,2651.3,2650.9,1.85930561]
[1727439516288,5.3436149,2651.2,2650.9,1.85930561]
[1727439516498,1.5716549,2651.2,2650.9,0.55]
[1727439516875,1.97271666,2651.4,2650.9,0.55]
[1727439516876,1.5716549,2651.3,2650.9,8.12842608]
[1727439517177,1.97271666,2651.4,2650.9,8.12842608]
[1727439517178,1.5716549,2651.4,2651.1,5.14883608]
[1727439517425,1.5716549,2651.5,2651.1,8.92083608]
[1727439517587,1.5716549,2651.6,2651.1,8.92083608]
[1727439517911,5.3429749,2651.6,2651.3,0.55]
[1727439518526,3.77161,2651.4,2651.2,0.55]
[1727439518680,7.54333,2651.4,2651.2,0.55]
[1727439518879,5.3432649,2651.4,2651.2,0.55]
[1727439519102,3.77161,2651.4,2651.2,0.55]
[1727439519776,5.3432649,2651.4,2651.2,0.55]
[1727439520236,3.77161,2651.4,2651.2,0.55]
[1727439520581,5.3432649,2651.4,2651.2,0.55]
[1727439521784,3.77173,2651.3,2650.9,3.0]
[1727439521984,1.5716549,2651.2,2650.9,0.55]
[1727439522194,3.77202,2651.1,2650.9,0.55]
[1727439522624,1.5716549,2651.2,2650.9,0.55]
[1727439523694,3.77201,2651.1,2650.9,0.55]
[1727439523887,6.84932898,2651.1,2650.5,0.8138]
[1727439524208,3.77231,2650.9,2650.6,0.55]
[1727439524411,1.5716549,2651.0,2650.6,0.55]
[1727439524925,6.1176649,2651.1,2650.6,0.55]
[1727439525297,1.5716549,2651.1,2650.8,0.55]
[1727439525884,5.3436949,2651.1,2650.8,0.55]
[1727439526083,9.1158249,2651.1,2650.8,0.55]
[1727439526922,1.5716549,2651.1,2650.8,0.55]
[1727439527124,1.5716549,2651.2,2650.8,4.35623608]
[1727439527429,1.5716549,2651.2,2650.8,4.43167403]
[1727439527630,1.5716549,2651.3,2651.0,0.55]
[1727439527831,1.5716549,2651.3,2651.1,0.8209]
[1727439528003,1.5716549,2651.3,2651.2,0.55]
[1727439528333,1.5716549,2651.4,2651.2,0.55]
[1727439529391,1.5716549,2651.4,2651.2,4.32185]
[1727439529606,1.5716549,2651.5,2651.4,0.55]
[1727439529850,1.5716549,2651.6,2651.4,0.55]
[1727439530331,5.3428149,2651.7,2651.4,0.55]
[1727439530533,1.5716549,2651.6,2651.4,0.55]
[1727439530892,1.5716549,2651.7,2651.4,0.55]
[1727439531530,5.3428249,2651.7,2651.4,0.55]
[1727439532200,1.5716549,2651.7,2651.4,1.059847]
[1727439532527,1.5716549,2651.8,2651.6,0.55]
[1727439533521,1.5716549,2651.8,2651.5,0.55]
[1727439533722,1.5716549,2651.8,2651.4,0.509847]
[1727439533723,3.77117,2651.7,2651.4,0.55]
[1727439533897,3.77138,2651.6,2651.4,0.55]
[1727439534102,3.77132,2651.6,2651.3,0.7766]
[1727439534302,4.34926998,2651.6,2651.3,0.7766]
[1727439534535,3.77145,2651.5,2651.3,0.7766]
[1727439534848,3.77159,2651.4,2651.3,0.7766]
[1727439535603,5.3432449,2651.4,2651.3,0.7766]
[1727439536330,3.77159,2651.4,2651.3,0.7766]
[1727439536541,6.75392835,2651.4,2651.3,0.7766]
[1727439536901,3.77199,2651.2,2650.6,3.77272]
[1727439537103,3.77204,2651.1,2650.6,3.77272]
[1727439537541,3.77204,2651.1,2650.7,0.55]
[1727439537952,3.77234,2650.9,2650.4,3.8531768]
[1727439538233,3.77234,2650.9,2650.4,5.35312409]
[1727439538816,7.54476,2650.9,2650.4,4.58013409]
[1727439539003,7.54475,2650.9,2650.4,4.58013409]
[1727439539205,3.77245,2650.8,2650.5,0.55]
[1727439539406,3.77234,2650.9,2650.5,0.55]
[1727439540404,1.57808723,2651.0,2650.6,3.0]
[1727439540703,5.74479944,2651.1,2650.6,3.0]
[1727439540704,5.35017723,2651.1,2650.6,3.0]
[1727439540922,3.7723,2650.9,2650.5,3.55]
[1727439541142,3.7723,2650.9,2650.5,0.55]
[1727439541539,7.5447,2650.9,2650.5,0.55]
[1727439541745,1.57808723,2651.0,2650.5,0.55]
[1727439542028,3.77266,2650.7,2650.5,0.55]
[1727439542727,1.57808723,2650.9,2650.5,0.55]
[1727439543238,1.57808723,2650.9,2650.6,0.7964]
[1727439543441,5.35046723,2650.9,2650.6,0.7964]
[1727439543854,3.77246,2650.8,2650.6,0.7964]
[1727439544050,5.35047723,2650.9,2650.7,0.55]
[1727439544459,1.57808723,2650.9,2650.7,0.55]
[1727439544839,5.35040723,2650.9,2650.7,0.55]
[1727439545044,1.57808723,2650.9,2650.7,0.55]
[1727439545361,3.77244,2650.8,2650.7,0.55]
[1727439545566,5.35039723,2650.9,2650.7,0.55]
[1727439546072,9.12282723,2650.9,2650.7,0.55]
[1727439546367,5.35039723,2650.9,2650.7,0.55]
[1727439546725,1.57808723,2651.0,2650.7,0.55]
[1727439546928,3.77244,2650.8,2650.7,0.55]
[1727439547252,3.77287,2650.5,2650.4,0.8798868]
[1727439547428,3.77287,2650.5,2650.4,0.6301868]
[1727439547770,3.77287,2650.5,2650.4,0.0801868]
[1727439549948,5.35084723,2650.6,2650.4,0.0801868]
[1727439550141,3.77276,2650.6,2650.4,0.0801868]
[1727439550351,5.35070723,2650.7,2650.5,0.7625]
[1727439550675,3.77262,2650.7,2650.5,0.7625]
[1727439550875,1.57808723,2650.9,2650.6,4.35623608]
[1727439551042,1.57808723,2651.0,2650.8,0.55]
[1727439551243,5.35010723,2651.1,2650.8,0.55]
[1727439551554,5.35032723,2651.0,2650.8,0.55]
[1727439552736,5.35010723,2651.1,2650.8,0.55]
[1727439553245,3.7722,2651.0,2650.8,0.55]
[1727439553460,5.35028723,2651.0,2650.8,0.55]
[1727439553936,1.57808723,2651.0,2650.8,0.55]
[1727439554936,1.57808723,2651.0,2650.7,0.7675]
[1727439555577,5.35046723,2650.9,2650.7,0.7675]
[1727439555879,5.35046723,2650.9,2650.6,0.55]
[1727439556472,3.77247,2650.8,2650.6,0.55]
[1727439556785,3.77238,2650.9,2650.6,0.55]
[1727439557283,3.77246,2650.8,2650.6,0.55]
[1727439557999,5.35046723,2650.9,2650.6,0.55]
[1727439558673,3.77248,2650.8,2650.6,0.55]
[1727439558981,5.35046723,2650.9,2650.6,0.55]
[1727439559220,1.57808723,2651.2,2650.8,0.55]
[1727439559494,1.97402229,2651.3,2650.8,0.55]
[1727439559495,1.57808723,2651.3,2651.2,3.77187]
[1727439559649,6.14006674,2651.7,2651.2,3.77187]
[1727439559650,1.57808723,2651.6,2651.4,0.8079]
[1727439559848,1.57808723,2651.6,2651.4,1.3579]
[1727439560089,1.57808723,2651.6,2651.5,0.55]
[1727439560259,1.57808723,2651.7,2651.5,0.55]
[1727439560784,1.57808723,2652.0,2651.7,0.7725]
[1727439561090,3.77095,2651.9,2651.7,1.29291559]
[1727439561242,3.77095,2651.9,2651.5,0.55]
[1727439561243,3.77111,2651.8,2651.5,0.55]
[1727439561444,3.77132,2651.6,2651.4,0.55]
[1727439561642,1.57808723,2651.6,2651.4,0.55]
[1727439561847,9.12056723,2651.7,2651.4,0.55]
[1727439562346,3.77145,2651.5,2651.4,0.55]
[1727439562660,3.77159,2651.4,2651.3,1.3225]
[1727439563775,3.77159,2651.4,2651.2,0.55]
[1727439564948,5.34948723,2651.6,2651.2,0.55]
[1727439565349,9.12088723,2651.6,2651.2,0.55]
[1727439565583,3.77146,2651.5,2651.2,0.55]
[1727439567507,5.34948723,2651.6,2651.2,0.55]
[1727439567650,3.77146,2651.5,2651.2,0.55]
[1727439569653,5.34948723,2651.6,2651.2,0.55]
[1727439569957,5.34947723,2651.6,2651.2,0.55]
[1727439570180,9.12086723,2651.6,2651.2,0.55]
[1727439570377,5.34947723,2651.6,2651.2,0.55]
[1727439570555,3.77146,2651.5,2651.2,0.55]
[1727439571774,3.77159,2651.4,2651.2,0.55]
[1727439572302,3.77145,2651.5,2651.2,0.55]
[1727439572669,3.7716,2651.4,2651.2,0.55]
[1727439573105,7.54326,2651.4,2651.2,0.55]
[1727439573269,7.54329,2651.4,2651.1,0.8086]
[1727439573470,3.7716,2651.4,2651.1,0.8086]
[1727439574772,7.54327,2651.4,2651.1,0.8086]